fUSD/lending_fUSD_20241121
["ID","MTS","AMOUNT","RATE_DAILY","PERIOD"]
[342823210,1732155043211,-150.0,0.0004118,2]
[342823211,1732155043221,-150.0,0.00041728,2]
[342823212,1732155043231,-150.0,0.00042459,2]
[342823213,1732155043242,-150.0,0.00042538,2]
[342823214,1732155043251,-150.0,0.00042652,2]
[342823215,1732155043261,-150.0,0.00042725,2]
[342823216,1732155043271,-150.0,0.00042922,2]
[342823217,1732155043281,-150.0,0.00043478,2]
[342823218,1732155043291,-193.74178004,0.0004474,15]
[342823222,1732155043363,-150.0,0.00041226,2]
[342823223,1732155043371,-150.0,0.00042317,2]
[342823224,1732155043380,-150.0,0.0004326,2]
[342823225,1732155043390,-150.0,0.00043297,2]
[342823226,1732155043399,-150.0,0.00043376,2]
[342823227,1732155043409,-150.0,0.00043429,2]
[342823228,1732155043418,-150.0,0.00043602,2]
[342823229,1732155043429,-960.12851026,0.0004474,15]
[342823230,1732155043438,-1998.5497895,0.00045068,120]
[342823231,1732155043448,-4833.02292245,0.00045479,120]
[342823232,1732155043459,-2479.69707755,0.00045479,120]
[342823233,1732155043468,-836.67093823,0.00045538,117]
[342823236,1732155044313,-500.0,0.00041,117]
[342823237,1732155044322,-150.0,0.00041444,2]
[342823238,1732155044331,-150.0,0.00041665,2]
[342823239,1732155044340,-150.0,0.00041805,2]
[342823240,1732155044595,-150.0,0.00041903,2]
[342823241,1732155044604,-150.0,0.00042038,2]
[342823242,1732155044613,-150.0,0.00042146,2]
[342823243,1732155044622,-150.0,0.00042305,2]
[342823244,1732155044631,-150.0,0.00042371,2]
[342823245,1732155044640,-150.0,0.00042495,2]
[342823246,1732155044649,-150.0,0.00042782,2]
[342823247,1732155044658,-150.0,0.00043214,2]
[342823248,1732155044667,-150.0,0.00043217,2]
[342823249,1732155044681,-150.0,0.00043219,2]
[342823250,1732155044690,-150.0,0.00043219,2]
[342823251,1732155044699,-150.0,0.00043224,2]
[342823252,1732155044708,-150.0,0.00043224,2]
[342823253,1732155044716,-89.61076992,0.00043225,2]
[342823254,1732155044728,-60.38923008,0.00043225,2]
[342823255,1732155044738,-150.0,0.00043237,2]
[342823256,1732155044747,-150.0,0.0004324,2]
[342823257,1732155044756,-150.0,0.0004324,2]
[342823258,1732155044765,-150.0,0.00043241,2]
[342823259,1732155044774,-150.0,0.00043253,2]
[342823260,1732155044783,-150.0,0.00043253,2]
[342823261,1732155044793,-150.0,0.00043259,2]
[342823262,1732155044802,-150.0,0.00043268,2]
[342823263,1732155044811,-150.0,0.00043276,2]
[342823264,1732155044820,-150.0,0.00043279,2]
[342823265,1732155044829,-150.0,0.00043282,2]
[342823266,1732155044839,-150.0,0.00043283,2]
[342823267,1732155044847,-52.3242518,0.00043287,2]
[342823268,1732155044859,-97.6757482,0.00043287,2]
[342823269,1732155044868,-150.0,0.00043289,2]
[342823270,1732155044877,-45.00199173,0.0004329,2]
[342823271,1732155044888,-104.99800827,0.0004329,2]
[342823272,1732155044897,-150.0,0.00043293,2]
[342823273,1732155044906,-150.0,0.00043297,2]
[342823274,1732155044915,-150.0,0.000433,2]
[342823275,1732155044928,-150.0,0.00043305,2]
[342823276,1732155044938,-150.0,0.0004331,2]
[342823277,1732155044948,-150.0,0.00043314,2]
[342823278,1732155044957,-150.0,0.00043327,2]
[342823279,1732155044967,-150.0,0.00043327,2]
[342823280,1732155044976,-150.0,0.00043329,2]
[342823281,1732155044986,-150.0,0.00043335,2]
[342823282,1732155044997,-150.0,0.00043341,2]
[342823283,1732155045009,-150.0,0.00043345,2]
[342823284,1732155045018,-16.85398493,0.0004335,2]
[342823285,1732155045070,-150.0,0.00043222,2]
[342823286,1732155045081,-150.0,0.00043242,2]
[342823287,1732155045090,-150.0,0.00043311,2]
[342823288,1732155045100,-43.73203959,0.0004335,2]
[342823289,1732155045112,-89.41397548,0.0004335,2]
[342823290,1732155045121,-150.0,0.00043352,2]
[342823291,1732155045131,-150.0,0.0004336,2]
[342823292,1732155045141,-150.0,0.0004336,2]
[342823293,1732155045150,-150.0,0.00043363,2]
[342823294,1732155045160,-150.0,0.00043363,2]
[342823295,1732155045169,-150.0,0.00043374,2]
[342823296,1732155045181,-150.0,0.00043392,2]
[342823297,1732155045190,-150.0,0.00043397,2]
[342823298,1732155045199,-150.0,0.00043405,2]
[342823299,1732155045209,-150.0,0.00043422,2]
[342823300,1732155045218,-150.0,0.00043422,2]
[342823301,1732155045227,-150.0,0.00043424,2]
[342823302,1732155045237,-150.0,0.0004343,2]
[342823303,1732155045246,-150.0,0.00043445,2]
[342823304,1732155045256,-150.0,0.00043445,2]
[342823305,1732155045265,-150.0,0.00043447,2]
[342823306,1732155045274,-150.0,0.00043449,2]
[342823307,1732155045283,-150.0,0.00043453,2]
[342823308,1732155045293,-128.23940789,0.00043455,2]
[342823309,1732155046016,-21.76059211,0.00043455,2]
[342823310,1732155046026,-150.0,0.00043461,2]
[342823311,1732155046035,-150.0,0.00043462,2]
[342823312,1732155046045,-150.0,0.00043462,2]
[342823313,1732155046055,-150.0,0.00043466,2]
[342823314,1732155046064,-150.0,0.00043474,2]
[342823315,1732155046074,-150.0,0.00043476,2]
[342823316,1732155046084,-150.0,0.00043483,2]
[342823317,1732155046093,-150.0,0.00043568,2]
[342823318,1732155046102,-929.84117248,0.00045538,117]
[342823319,1732155046157,-500.0,0.00041024,2]
[342823320,1732155046167,-150.0,0.00043213,2]
[342823321,1732155046177,-150.0,0.00043229,2]
[342823322,1732155046186,-150.0,0.00043365,2]
[342823323,1732155046195,-150.0,0.00043392,2]
[342823325,1732155046204,-150.0,0.00043419,2]
[342823326,1732155046213,-150.0,0.00043477,2]
[342823327,1732155046222,-32.30532102,0.00043483,2]
[342823329,1732155046971,-150.0,0.00043215,2]
[342823330,1732155046982,-150.0,0.00043215,2]
[342823331,1732155046992,-150.0,0.00043224,2]
[342823332,1732155047006,-150.0,0.00043226,2]
[342823333,1732155047016,-150.0,0.00043229,2]
[342823334,1732155047026,-150.0,0.00043233,2]
[342823335,1732155047035,-150.0,0.00043233,2]
[342823336,1732155047046,-150.0,0.00043234,2]
[342823337,1732155047055,-150.0,0.00043235,2]
[342823338,1732155047064,-150.0,0.00043239,2]
[342823339,1732155047076,-150.0,0.00043242,2]
[342823340,1732155047086,-150.0,0.00043244,2]
[342823341,1732155047096,-150.0,0.00043245,2]
[342823342,1732155047105,-150.0,0.00043251,2]
[342823343,1732155047116,-150.0,0.00043252,2]
[342823344,1732155047126,-150.0,0.00043264,2]
[342823345,1732155047136,-150.0,0.0004327,2]
[342823346,1732155047145,-150.0,0.00043277,2]
[342823347,1732155047154,-150.0,0.00043283,2]
[342823348,1732155047164,-150.0,0.00043288,2]
[342823349,1732155047173,-150.0,0.00043292,2]
[342823350,1732155047187,-150.0,0.00043301,2]
[342823351,1732155047196,-150.0,0.00043306,2]
[342823352,1732155047205,-150.0,0.00043314,2]
[342823353,1732155047215,-150.0,0.00043324,2]
[342823354,1732155047224,-150.0,0.00043325,2]
[342823355,1732155047234,-150.0,0.00043328,2]
[342823356,1732155047243,-150.0,0.0004333,2]
[342823357,1732155047253,-150.0,0.00043337,2]
[342823358,1732155047262,-150.0,0.00043338,2]
[342823359,1732155047271,-150.0,0.00043344,2]
[342823360,1732155047280,-150.0,0.00043357,2]
[342823361,1732155047290,-150.0,0.00043365,2]
[342823362,1732155047299,-60.87857544,0.00043365,2]
[342823363,1732155047343,-89.12142456,0.00043365,2]
[342823364,1732155047352,-150.0,0.00043374,2]
[342823365,1732155047643,-150.0,0.00043381,2]
[342823366,1732155047656,-150.0,0.00043382,2]
[342823367,1732155047665,-150.0,0.00043383,2]
[342823368,1732155047675,-150.0,0.00043388,2]
[342823369,1732155047685,-150.0,0.00043392,2]
[342823370,1732155047694,-150.0,0.00043393,2]
[342823371,1732155047704,-150.0,0.00043394,2]
[342823372,1732155047713,-150.0,0.00043396,2]
[342823373,1732155047723,-150.0,0.00043398,2]
[342823374,1732155047732,-150.0,0.00043407,2]
[342823375,1732155047741,-150.0,0.0004341,2]
[342823376,1732155047751,-150.0,0.00043412,2]
[342823377,1732155047760,-150.0,0.00043413,2]
[342823378,1732155047769,-150.0,0.00043415,2]
[342823379,1732155047778,-150.0,0.00043418,2]
[342823380,1732155047788,-150.0,0.0004342,2]
[342823381,1732155047797,-150.0,0.00043423,2]
[342823382,1732155047806,-150.0,0.00043426,2]
[342823383,1732155047815,-150.0,0.00043432,2]
[342823384,1732155047825,-150.0,0.00043437,2]
[342823385,1732155047834,-150.0,0.0004345,2]
[342823386,1732155047843,-150.0,0.00043453,2]
[342823387,1732155047853,-150.0,0.00043455,2]
[342823388,1732155047863,-150.0,0.00043456,2]
[342823389,1732155047872,-150.0,0.00043456,2]
[342823390,1732155047881,-150.0,0.00043459,2]
[342823391,1732155047891,-150.0,0.00043464,2]
[342823392,1732155047900,-150.0,0.00043467,2]
[342823393,1732155047909,-150.0,0.0004347,2]
[342823394,1732155047919,-150.0,0.00043474,2]
[342823395,1732155047929,-150.0,0.0004348,2]
[342823396,1732155047939,-117.69467898,0.00043483,2]
[342823397,1732155047948,-150.0,0.00043484,2]
[342823398,1732155047957,-150.0,0.00043489,2]
[342823399,1732155047967,-150.0,0.00043804,2]
[342823400,1732155047976,-2690.68788929,0.00045538,117]
[342823401,1732155047986,-198.502,0.0004555,100]
[342823402,1732155047997,-163.23,0.00045753,2]
[342823403,1732155048007,-456.82595334,0.0004589,120]
[342823404,1732155048019,-6855.89404666,0.0004589,120]
[342823405,1732155048029,-401.44,0.00046069,2]
[342823406,1732155048039,-7312.72,0.00046301,120]
[342823407,1732155048048,-839.20907334,0.000465,120]
[342823408,1732155048059,-8870.29944513,0.000465,120]
[342823409,1732155048069,-480.96393041,0.000466,2]
[342823410,1732155048079,-7312.72,0.00046712,120]
[342823411,1732155048088,-650.0,0.00047,2]
[342823412,1732155048098,-7312.72,0.00047123,120]
[342823413,1732155048107,-194.23,0.00047354,2]
[342823414,1732155048116,-5063.4208532,0.000475,100]
[342823415,1732155048126,-7312.72,0.00047534,120]
[342823416,1732155048135,-5181.87262455,0.000476,2]
[342823417,1732155048144,-21370.13828861,0.000476,30]
[342823418,1732155048248,-150.0,0.00043221,2]
[342823419,1732155048258,-150.0,0.00043246,2]
[342823420,1732155048268,-150.0,0.0004326,2]
[342823421,1732155048278,-150.0,0.00043334,2]
[342823422,1732155048287,-150.0,0.00043334,2]
[342823423,1732155048296,-150.0,0.00043456,2]
[342823424,1732155048305,-150.0,0.00043504,2]
[342823425,1732155048314,-1314.3995724,0.000476,30]
[342823427,1732155704643,150.0,0.00025,100]
[342823428,1732155931111,-4604.78807247,9.9e-05,2]
[342823429,1732156028090,-919.84747981,9.336e-05,2]
[342823430,1732156028414,-917.73919834,9.336e-05,2]
[342823431,1732156038095,-809.94519627,9.336e-05,2]
[342823432,1732156038116,-200.0,9.6e-05,2]
[342823433,1732156038137,-1099.50793364,9.9e-05,2]
[342823434,1732156040094,-572.57622904,9.9e-05,2]
[342823436,1732156128280,-1713.57175264,9e-05,2]
[342823437,1732156128306,-4389.50166485,9.9e-05,2]
[342823438,1732156128332,-4511.4886,9.9e-05,2]
[342823439,1732156128355,-4092.71315229,9.9e-05,2]
[342823440,1732156128380,-150.0,9.999e-05,2]
[342823441,1732156128404,-20142.72483022,0.0001,2]
[342823449,1732156178857,-925.39217959,0.0001,2]
[342823470,1732156232488,-150.0,9.999e-05,2]
[342823471,1732156232497,-1341.10385168,0.0001,2]
[342823472,1732156232506,-795.68984994,0.0001,2]
[342823473,1732156232517,-2402.99076456,0.0001,2]
[342823476,1732156232528,-309.75,0.0001,2]
[342823482,1732156232800,-664644.0084334,0.0001,2]
[342823483,1732156232811,-765212.60074518,0.0001,2]
[342823484,1732156232822,-2476.68894519,0.0001,2]
[342823485,1732156232832,-2049.41666824,0.0001,2]
[342823486,1732156232858,-4563.10411455,0.0001,2]
[342823487,1732156232868,-453.51,0.0001,2]
[342823488,1732156232878,-6466.23198257,0.0001,2]
[342823489,1732156232889,-1023.52705,0.0001,2]
[342823490,1732156232900,-355.41834579,0.0001,2]
[342823492,1732156232911,-315.04392319,0.0001,2]
[342823498,1732156232964,-454.25974431,0.0001,2]
[342823500,1732156232974,-1644.45156015,0.0001,2]
[342823555,1732156238495,-872.79150749,0.0001,2]
[342823556,1732156238506,-3961.97304632,0.0001,2]
[342823557,1732156238517,-4691.75275157,0.0001,2]
[342823558,1732156238680,-7191.15386935,0.0001,2]
[342823559,1732156238690,-5940.34185658,0.0001,2]
[342823560,1732156238704,-2741.6252597,0.0001,2]
[342823561,1732156238715,-2940.91561838,0.0001,2]
[342823562,1732156238727,-4588.17055245,0.0001,2]
[342823563,1732156238738,-561.45406801,0.0001,2]
[342823613,1732156239633,-200000.0,0.0001,2]
[342823615,1732156240385,-981.89589485,0.0001,2]
[342823618,1732156240396,-1725.034752,0.0001,2]
[342823621,1732156240419,-592.3,0.0001,2]
[342823641,1732156240616,-1564.88647687,0.0001,2]
[342823642,1732156240634,-346.32366787,0.0001,2]
[342823643,1732156240651,-300.80629381,0.0001,2]
[342823663,1732156244021,-3135.3,0.0001,2]
[342823664,1732156244032,-8797.2761356,0.0001,2]
[342823665,1732156244057,-94399.47991182,0.0001,2]
[342823666,1732156244068,-952662.27813313,0.0001,2]
[342823667,1732156244079,-3301.05573726,0.0001,2]
[342823668,1732156244091,-5924.53248524,0.0001,2]
[342823669,1732156244115,-715.22857209,0.0001,2]
[342823670,1732156244126,-9080.17317726,0.0001,2]
[342823671,1732156244138,-2745.08909172,0.0001,2]
[342823672,1732156244150,-2985.44310836,0.0001,2]
[342823673,1732156244161,-12962.93639027,0.0001,2]
[342823674,1732156244173,-593.16863656,0.0001,2]
[342823675,1732156244183,-282.528568,0.0001,2]
[342823676,1732156244195,-919.2400004,0.0001,2]
[342823677,1732156244208,-311.82140173,0.0001,2]
[342823686,1732156246500,-5440.99995,0.0001,2]
[342823687,1732156246511,-5533.2999975,0.0001,2]
[342823688,1732156246522,-4580.5200791,0.0001,2]
[342823689,1732156246533,-2318.4819122,0.0001,2]
[342823690,1732156246544,-7735.0641,0.0001,2]
[342823691,1732156246555,-1511.58838926,0.0001,2]
[342823692,1732156246565,-1138.32354307,0.0001,2]
[342823693,1732156246576,-892.11371935,0.0001,2]
[342823694,1732156246890,-279998.48146786,0.0001,2]
[342823695,1732156246919,-1273.63639966,0.0001,2]
[342823702,1732157136350,-160.57,8.602e-05,2]
[342823703,1732157136372,-91.48028665,9.3e-05,3]
[342823704,1732157143794,-900.0,9.5e-05,3]
[342823705,1732157143816,-1200.0,9.6e-05,3]
[342823706,1732157143836,-182.713,9.6e-05,2]
[342823707,1732157143858,-806.5627123,9.6e-05,2]
[342823709,1732157230187,-839.6332877,9.6e-05,2]
[342823710,1732157230208,-465.56512582,9.8e-05,2]
[342823711,1732157242107,-214.14888608,9.3e-05,3]
[342823712,1732157252221,-985.85111392,9.3e-05,3]
[342823713,1732157252244,-2400.0,9.4e-05,3]
[342823714,1732157252265,-325.08882401,9.5e-05,3]
[342823727,1732157431587,-3274.91117599,9.5e-05,3]
[342823730,1732157431597,-4214.96548493,9.599e-05,2]
[342823733,1732157431607,-4800.0,9.6e-05,3]
[342823735,1732157431616,-300.0,9.699e-05,2]
[342823737,1732157431625,-6100.0,9.7e-05,3]
[342823739,1732157431634,-534.43487418,9.8e-05,2]
[342823741,1732157431644,-1200.0,9.8e-05,3]
[342823743,1732157431653,-6385.1505,9.8e-05,2]
[342823745,1732157431663,-47820.0,9.801e-05,2]
[342823747,1732157431675,-500.61256777,9.873e-05,2]
[342823749,1732157431684,-500.0,9.873e-05,2]
[342823751,1732157431695,-150.0,9.889e-05,2]
[342823753,1732157431705,-10012.54414033,9.89e-05,2]
[342823757,1732157431798,-1490.53371257,9.89e-05,2]
[342823758,1732157431810,-12900.95680426,9.89e-05,2]
[342823759,1732157431821,-1925.13,9.89e-05,2]
[342823760,1732157431833,-10003.43684757,9.89e-05,2]
[342823761,1732157431844,-9483.32915525,9.89e-05,2]
[342823762,1732157431855,-276.9999995,9.89e-05,2]
[342823763,1732157431866,-940.0,9.89e-05,2]
[342823764,1732157431877,-525.22293735,9.89e-05,2]
[342823765,1732157431888,-938.33250361,9.89e-05,2]
[342823766,1732157431897,-8785.4004,9.9e-05,2]
[342823767,1732157431906,-7961.7202,9.9e-05,2]
[342823768,1732157431915,-12763.8115,9.9e-05,2]
[342823769,1732157431924,-10408.2945,9.9e-05,2]
[342823770,1732157431933,-31174.429,9.9e-05,2]
[342823771,1732157431946,-189227.9413,9.9e-05,2]
[342823772,1732157431956,-6490.7756,9.9e-05,2]
[342823773,1732157431965,-1200.0,9.9e-05,3]
[342823774,1732157431974,-160.47810318,9.973e-05,2]
[342823775,1732157431984,-250.0,9.982e-05,2]
[342823776,1732157431993,-230.77405806,0.0001,2]
[342823777,1732157432002,-230.77405806,0.0001,2]
[342823779,1732157432011,-230.77405806,0.0001,2]
[342823781,1732157432020,-230.77405806,0.0001,2]
[342823783,1732157432029,-230.77405806,0.0001,2]
[342823785,1732157432038,-230.77405806,0.0001,2]
[342823787,1732157432048,-230.77405806,0.0001,2]
[342823789,1732157432057,-230.77405806,0.0001,2]
[342823791,1732157432066,-230.77405806,0.0001,2]
[342823793,1732157432075,-549132.95815495,0.0001,2]
[342823794,1732157432090,-155628.886936,0.0001,2]
[342823795,1732157432307,-1488.29368655,0.0001,2]
[342823796,1732157432318,-2219.29526968,0.0001,2]
[342823797,1732157432328,-308.21,0.0001,2]
[342823798,1732157432339,-12900.0,0.0001,2]
[342823806,1732157437987,-380.2532935,0.0001,2]
[342823807,1732157437998,-6617.11680221,0.0001,2]
[342823809,1732157438070,-19101.71650194,0.0001,2]
[342823810,1732157438082,-643.09223713,0.0001,2]
[342823811,1732157438092,-5303.29652773,0.0001,2]
[342823812,1732157438164,-10000.0,0.0001,2]
[342823959,1732157439658,-7531.78395425,0.0001,2]
[342823960,1732157439670,-1264.77570916,0.0001,2]
[342823961,1732157439684,-836.58634982,0.0001,2]
[342823962,1732157439695,-2016.5,0.0001,2]
[342823963,1732157439836,-3921.10659425,0.0001,2]
[342823964,1732157439848,-6133.42207652,0.0001,2]
[342823965,1732157439860,-2310.43518724,0.0001,2]
[342823966,1732157439871,-488.0814913,0.0001,2]
[342823967,1732157439882,-1106.8664827,0.0001,2]
[342823968,1732157439893,-8960.0,0.0001,2]
[342823969,1732157439904,-3235.98650322,0.0001,2]
[342823970,1732157439916,-256.45423774,0.0001,2]
[342823971,1732157439927,-486.06072121,0.0001,2]
[342823972,1732157439937,-12745.69763446,0.0001,2]
[342823973,1732157439949,-499.7582014,0.0001,2]
[342823980,1732157442587,-151.4799295,9.99e-05,2]
[342823981,1732157442596,-21647.88891542,0.0001,2]
[342823982,1732157442607,-4879.65758759,0.0001,2]
[342824004,1732157442793,-262.86533009,0.0001,2]
[342824005,1732157442805,-494.89745534,0.0001,2]
[342824006,1732157442840,-5379.57631188,0.0001,2]
[342824007,1732157442851,-10471.53826072,0.0001,2]
[342824009,1732157443024,-3075.0,0.0001,2]
[342824010,1732157443037,-23519.51585464,0.0001,2]
[342824011,1732157443049,-3056.05277297,0.0001,2]
[342824012,1732157443060,-2391.9470605,0.0001,2]
[342824013,1732157443072,-476455.4999988,0.0001,2]
[342824016,1732157445536,-24333.60554926,0.0001,2]
[342824024,1732157445783,-5358.79245,0.0001,2]
[342824025,1732157445794,-1731.9072555,0.0001,2]
[342824026,1732157445805,-1939.45375443,0.0001,2]
[342824027,1732157445816,-1788.55635343,0.0001,2]
[342824028,1732157445828,-1081.24999648,0.0001,2]
[342824029,1732157445839,-6290.23575332,0.0001,2]
[342824030,1732157445851,-3187.88732942,0.0001,2]
[342824031,1732157446012,-46468.68686728,0.0001,2]
[342824032,1732157446023,-4711.44999999,0.0001,2]
[342824033,1732157554249,158.53,0.00024696,120]
[342824037,1732158337097,-200.0,9.6e-05,2]
[342824038,1732158337120,-892.16676733,9.6e-05,2]
[342824039,1732158342672,-279.17067643,9.6e-05,2]
[342824040,1732158439096,-577.26514305,9.6e-05,2]
[342824041,1732158439119,-351.84190222,9.8e-05,2]
[342824042,1732158453108,-1200.67249778,9.8e-05,2]
[342824043,1732158453133,-336.10768824,9.8e-05,2]
[342824044,1732158453156,-491.2125,9.8e-05,2]
[342824045,1732158453179,-1687.11163382,9.8e-05,2]
[342824046,1732158453320,-759.74661386,9.8e-05,2]
[342824047,1732158453343,-150.0,9.899e-05,2]
[342824048,1732158453365,-300.0,9.899e-05,2]
[342824049,1732158453388,-109.49230097,9.9e-05,2]
[342824060,1732158632162,-150.0,9.899e-05,2]
[342824061,1732158632176,-1421.04711358,9.9e-05,2]
[342824062,1732158632273,-297.52475677,9.9e-05,2]
[342824063,1732158632284,-998.62087794,9.9e-05,2]
[342824064,1732158632295,-5806.82550513,9.9e-05,2]
[342824065,1732158632310,-1057.62570826,9.9e-05,2]
[342824066,1732158632321,-15650.53370958,9.9e-05,2]
[342824067,1732158632332,-1665.93206113,9.9e-05,2]
[342824068,1732158632346,-46527.48509161,9.9e-05,2]
[342824069,1732158632368,-1034.46527114,9.9e-05,2]
[342824071,1732158632381,-700.0,9.9e-05,2]
[342824073,1732158632392,-8824.40500161,9.9e-05,2]
[342824080,1732158632470,-13957.26910228,9.9e-05,2]
[342824082,1732158632479,-8903.0,9.9e-05,2]
[342824084,1732158632488,-296.86573917,9.973e-05,2]
[342824086,1732158632498,-1233.51498052,9.999e-05,3]
[342824087,1732158632507,-450888.45609396,0.0001,2]
[342824089,1732158632518,-44930.664014,0.0001,2]
[342824134,1732158639096,-5282.53928852,0.0001,2]
[342824136,1732158639761,-2587.434043,0.0001,2]
[342824137,1732158639774,-19965.11296597,0.0001,2]
[342824138,1732158640046,-5922.85259496,0.0001,2]
[342824139,1732158640059,-1526.22342231,0.0001,2]
[342824140,1732158640070,-1506.00693407,0.0001,2]
[342824141,1732158640108,-0.0056101,0.0001,2]
[342824142,1732158640123,-1912.73379004,0.0001,2]
[342824143,1732158640149,-47152.0,0.0001,2]
[342824144,1732158640160,-998.45,0.0001,2]
[342824152,1732158643049,-5007.2448293,0.0001,2]
[342824153,1732158643061,-1786.0000002,0.0001,2]
[342824154,1732158643072,-14146.27998719,0.0001,2]
[342824155,1732158643116,-4799.26351118,0.0001,2]
[342824156,1732158643131,-11019.22614739,0.0001,2]
[342824157,1732158643142,-2432.0,0.0001,2]
[342824184,1732158645778,-8473.81254741,0.0001,2]
[342824186,1732158645951,-3173.49076097,0.0001,2]
[342824187,1732158645964,-2501.5175045,0.0001,2]
[342824188,1732158646122,-540.71569304,0.0001,2]
[342824204,1732159241408,1049.11696356,5e-05,14]
[342824206,1732159494428,160.57,8.219e-05,2]
[342824207,1732159556096,-262.96,8.623e-05,2]
[342824208,1732159556119,-2000.0,8.623e-05,2]
[342824209,1732159556141,-1990.56909622,8.673e-05,2]
[342824210,1732159639114,-608.23258099,8.522e-05,2]
[342824211,1732159641100,-847.38016711,8.522e-05,2]
[342824212,1732159645659,-708.4272519,8.522e-05,2]
[342824213,1732159645682,-196.01,8.565e-05,2]
[342824214,1732159645704,-55.35438372,8.623e-05,2]
[342824215,1732159649119,-244.64561628,8.623e-05,2]
[342824216,1732159649144,-2025.38639129,8.624e-05,2]
[342824222,1732159749012,-250.0,8.573e-05,2]
[342824223,1732159749034,-184.59,8.577e-05,2]
[342824224,1732159749055,-250.0,8.594e-05,2]
[342824225,1732159749076,-21874.61360871,8.624e-05,2]
[342824226,1732159749097,-1217.13902041,8.673e-05,2]
[342824227,1732159749120,-9345.51,8.673e-05,2]
[342824228,1732159749142,-3439.68,8.68e-05,2]
[342824229,1732159749162,-383.27524285,8.721e-05,2]
[342824230,1732159749197,-3342.71475715,8.721e-05,2]
[342824231,1732159749219,-163.91,8.754e-05,2]
[342824232,1732159749240,-1000.0,8.766e-05,2]
[342824233,1732159749262,-775.41,8.822e-05,2]
[342824234,1732159749288,-3264.59,8.951e-05,2]
[342824235,1732159749310,-968.29,8.969e-05,2]
[342824236,1732159749330,-1000.0,8.999e-05,2]
[342824237,1732159749351,-150.0,8.999e-05,2]
[342824238,1732159749377,-202.0,9e-05,2]
[342824239,1732159749396,-20898.0,9e-05,2]
[342824240,1732159749417,-1838.1074447,9e-05,2]
[342824242,1732159770929,250.0,8.859e-05,2]
[342824243,1732159783453,509.68193232,9e-05,2]
[342824247,1732159831965,-262.2305963,8.84e-05,2]
[342824250,1732159831984,-1677.19373543,8.84e-05,2]
[342824252,1732159832008,-1352.37175213,8.84e-05,2]
[342824257,1732159832111,-3621.55391614,8.84e-05,2]
[342824258,1732159832121,-2263.93349808,9e-05,2]
[342824259,1732159832130,-300.0,9.033e-05,2]
[342824260,1732159832140,-200.0,9.3e-05,3]
[342824261,1732159832150,-180.86,9.314e-05,2]
[342824262,1732159832160,-2647.53187442,9.336e-05,2]
[342824263,1732159832169,-500.0,9.4e-05,3]
[342824264,1732159832179,-446.01272212,9.499e-05,2]
[342824265,1732159832189,-700.0,9.5e-05,3]
[342824266,1732159832199,-26174.0,9.51e-05,2]
[342824267,1732159832208,-200.0,9.6e-05,2]
[342824268,1732159832218,-1000.0,9.6e-05,3]
[342824269,1732159832227,-1199.36,9.65e-05,2]
[342824270,1732159832237,-164.52,9.658e-05,2]
[342824271,1732159832246,-1200.0,9.7e-05,3]
[342824272,1732159832258,-150.0,9.799e-05,2]
[342824273,1732159832267,-6736.6634,9.8e-05,2]
[342824274,1732159832277,-200.0,9.8e-05,3]
[342824275,1732159832286,-500.0,9.8e-05,2]
[342824276,1732159832295,-619.7399,9.8e-05,2]
[342824277,1732159832304,-8347.3637,9.8e-05,2]
[342824278,1732159832313,-1000.0,9.862e-05,2]
[342824279,1732159832323,-215.79536915,9.873e-05,2]
[342824280,1732159832332,-229.1981798,9.873e-05,2]
[342824281,1732159832341,-160.62426184,9.873e-05,2]
[342824282,1732159832351,-158.03,9.89e-05,2]
[342824283,1732159832360,-1000.0,9.892e-05,2]
[342824284,1732159832369,-12879.5119,9.9e-05,2]